Cogmind - Beta 16 @@@ ROGUE MODE // 2025.11.26 @ 21:33:14 Player: Skysub Result: Self-destructed Performance ------------- Evolutions (3) 1500 Regions Visited (4) 800 Robots Destroyed (1) 5 Value Destroyed (1) 1 Prototype IDs (0) 0 Alien Tech Used (0) 0 Bonus (834) 834 TOTAL SCORE: 3140 Bonus ------- Pacifist 834 Cogmind --------- Core Integrity 438/700 Matter 300/300 Energy 100/100 System Corruption 0% Temperature Cool (0) Movement Core (50) Location -7/Factory Parts ------- > --- POWER (2) -------- (None) > --- PROPULSION (4) --- (None) > --- UTILITY (5) ------ Structural Scanner > --- WEAPON (2) ------- (None) > --- INVENTORY (5) ---- Ion Engine Light Ion Engine Reaction Control System Hardened Light Armor Plating Maul Peak State ------------ > --- POWER ------------ (None) > --- PROPULSION ------- Flight Unit > --- UTILITY ---------- Structural Scanner Reaction Control System > --- WEAPON ----------- (None) > --- INVENTORY -------- Ion Engine Light Ion Engine [Rating: 5] Favorites ----------- Power None Propulsion Flight Unit Flight Unit Flight Unit Utility Structural Scanner Device Structural Scanner Processor Visual Processing Unit Weapon None Build | -11 -10 -9 -8 -7 ------- Run | Yrd Mat Mat Mat Fac Slots Evolved 6 | . . 2 2 2 Power 1 | . . . . 1 Propulsion 2 | . . 1 1 . Utility 3 | . . 1 1 1 Weapon . | . . . . . Parts Attached 4 | . 2 2 . . Power . | . . . . . Engine . | . . . . . Core . | . . . . . Reactor . | . . . . . Propulsion 1 | . 1 . . . Treads . | . . . . . Leg . | . . . . . Wheel . | . . . . . Hover . | . . . . . Flight 1 | . 1 . . . Utility 3 | . 1 2 . . Device 2 | . 1 1 . . Storage . | . . . . . Processor 1 | . . 1 . . Hackware . | . . . . . Protection . | . . . . . Artifact . | . . . . . Weapon . | . . . . . Energy Gun . | . . . . . Energy Cannon . | . . . . . Ballistic Gun . | . . . . . Ballistic Cannon . | . . . . . Launcher . | . . . . . Special Weapon . | . . . . . Impact Weapon . | . . . . . Slashing Weapon . | . . . . . Piercing Weapon . | . . . . . Special Melee Weapon . | . . . . . Unidentified Prototypes . | . . . . . Parts Lost 1 | . . 1 . . Power . | . . . . . Propulsion 1 | . . 1 . . Utility . | . . . . . Weapon . | . . . . . Highest Loss Streak 1 | . . 1 . . To Critical Strikes . | . . . . . Average Backups 3 | . 1 3 5 4 Power 1 | . 1 2 2 2 Propulsion . | . . . . . Utility 1 | . . 1 3 2 Weapon . | . . . . . Tool/Special . | . . . . . Unused Backups 4 | . . . . 4 Power 2 | . . . . 2 Propulsion . | . . . . . Utility 1 | . . . . 1 Weapon 1 | . . . . 1 Tool/Special . | . . . . . Average Slot Usage (%) 9 | . 9 14 9 6 Flight 2 | . 9 2 . . Device 4 | . . 8 . 5 Processor 3 | . . 3 9 . Peak Build Rating 5 | . 2 5 2 2 Average Rating 1 | . . 2 2 . On Entrance . | . . . 2 2 Avg Prop Armor Cover (%) . | . . . . . Naked Turns 25 | . 15 5 . 5 Heaviest Build 2 | . 1 2 . 1 Greatest Support 4 | 3 4 4 3 3 Greatest Overweight (x) . | . . . . . Average Overweight (x) . | . . . . . Largest Inventory Capacity 5 | 5 5 5 5 5 Average Capacity 5 | 5 5 5 5 5 Most Carried 5 | 1 4 5 5 5 Average Carried 3 | . 1 3 5 4 Final Capacity 5 | 5 5 5 5 5 Final Carried 5 | 1 4 5 5 5 Class Distribution -------------------- 100% | Mutant Dominant Class ---------------- Mutant | -10/Materials Mutant | -9/Materials Mutant | -8/Materials Mutant | -7/Factory Resources | -11 -10 -9 -8 -7 ----------- Run | Yrd Mat Mat Mat Fac Matter Collected 193 | 183 . . . 10 Remotely . | . . . . . Salvage Created 20 | . . . . 20 Parts 3 | . . . . 3 Haulers Intercepted . | . . . . . Recyclers Shooed . | . . . . . Parts Field Recycled . | . . . . . Retrieved Matter . | . . . . . Parts Self-Destructed . | . . . . . Prevented . | . . . . . Parts Restored . | . . . . . Kills | -11 -10 -9 -8 -7 ------- Run | Yrd Mat Mat Mat Fac Combat Hostiles Destroyed . | . . . . . Classes Destroyed 1 | . . . . 1 Worker 1 | . . . . 1 Best Kill Streak 1 | . . . . 1 Combat Bots Only . | . . . . . Max Kills in Single Turn 1 | . . . . 1 Gunslinging . | . . . . . Exploded . | . . . . . Melee . | . . . . . Uniques/NPCs Destroyed . | . . . . . Combat | -11 -10 -9 -8 -7 -------- Run | Yrd Mat Mat Mat Fac Hostile Shots Fired 150 | . 8 45 56 41 Missed 63 | . 4 17 25 17 Hits 87 | . 4 28 31 24 Melee 2 | . . . 2 . Projectile 85 | . 4 28 29 24 Critical Strikes 3 | . . . 3 . Damage Taken 1113 | . 59 255 529 270 Core 1069 | . 59 226 522 262 Absorbed by Shields . | . . . . . Core Remaining (%) 56 | 100 76 43 5 . Volleys Fired . | . . . . . Largest . | . . . . . Hottest . | . . . . . Shots Fired . | . . . . . Gun . | . . . . . Cannon . | . . . . . Launcher . | . . . . . Special . | . . . . . Kinetic . | . . . . . Thermal . | . . . . . Explosive . | . . . . . Electromagnetic . | . . . . . Robot Hit Streak . | . . . . . Robot Miss Streak . | . . . . . Penetration Max . | . . . . . Secondary Targets . | . . . . . Shots Hit Robots . | . . . . . Core Hits 4 | . 1 . . 3 Critical Kills . | . . . . . Critical Parts Destroyed . | . . . . . Critical Strikes . | . . . . . Melee Attacks . | . . . . . Impact . | . . . . . Slashing . | . . . . . Piercing . | . . . . . Sneak Attacks . | . . . . . Combat Hostiles . | . . . . . Follow-up Attacks . | . . . . . Damage Inflicted 87 | . 31 . 27 29 Guns . | . . . . . Cannons . | . . . . . Explosions . | . . . . . Melee . | . . . . . Ramming 87 | . 31 . 27 29 Kinetic . | . . . . . Thermal . | . . . . . Explosive . | . . . . . Electromagnetic . | . . . . . Impact . | . . . . . Slashing . | . . . . . Piercing . | . . . . . Highest Corruption 4 | . . . 4 . Average Corruption 3 | . . . 3 . Corruption Purged . | . . . . . Corruption Blocked . | . . . . . Overload Shots . | . . . . . Overflow Damage . | . . . . . Projectiles . | . . . . . Explosions . | . . . . . Melee . | . . . . . Knockbacks . | . . . . . Impact . | . . . . . Kinetic . | . . . . . Secondary . | . . . . . Self-Inflicted Damage 38 | . 14 . 12 12 Shots . | . . . . . Rammed 21 | . 5 1 5 10 Targets Rammed 21 | . 5 1 5 10 Kicked . | . . . . . Crushed . | . . . . . Highest Temperature 14 | . . . 14 . Average Temperature 12 | . . . 12 . Received Heat Transfer 384 | . 24 30 243 87 Siege Activations . | . . . . . Martial Activations . | . . . . . Shielding Activations . | . . . . . Robots Disrupted . | . . . . . Combat Hostiles . | . . . . . Robots Corrupted . | . . . . . Combat Hostiles . | . . . . . Parts Fried . | . . . . . Impact Corruptions . | . . . . . Robots Melted . | . . . . . Combat Hostiles . | . . . . . Parts Melted . | . . . . . Heat Transferred . | . . . . . Parts Sabotaged . | . . . . . Parts Stolen . | . . . . . Parts Stripped . | . . . . . Power Chain Reactions . | . . . . . Alert | -11 -10 -9 -8 -7 ------- Run | Yrd Mat Mat Mat Fac Maximum Alert Level . | . . . . . Low Security (%) 100 | 100 100 100 100 100 Level 1 . | . . . . . Level 2 . | . . . . . Level 3 . | . . . . . Level 4 . | . . . . . Level 5 . | . . . . . High Security . | . . . . . Max Security . | . . . . . Peak Influence 74 | . 15 37 24 74 Initial 11 | . . 5 11 10 Average 21 | . 2 14 9 47 Influence Increases 215 | . 15 57 34 109 Destroy 0b10 Robot/NC 5 | . . . . 5 Successful Hack 30 | . . 12 4 14 Partial Spotted 15 | . . 15 . . Lose Combat Pursuer 165 | . 15 30 30 90 Influence Decreases 146 | . . 45 37 64 Entered New Map 40 | . . 10 16 14 Time Decay 106 | . . 35 21 50 Squads Dispatched 8 | . 1 3 3 1 Investigation 3 | . . 1 1 1 Extermination . | . . . . . Reinforcement 5 | . 1 2 2 . Assault . | . . . . . Garrison . | . . . . . Intercept . | . . . . . Searches Triggered . | . . . . . Construction Impeded . | . . . . . Haulers Reinforced . | . . . . . Active Scanning Responses . | . . . . . Cargo Convoy Interrupts . | . . . . . Stealth | -11 -10 -9 -8 -7 --------- Run | Yrd Mat Mat Mat Fac Distress Signals 3 | . 1 1 1 . Communications Jammed . | . . . . . Distress Signals . | . . . . . Times Spotted 46 | . 5 16 19 6 Peak Tracking Total 15 | . 5 14 15 4 Tactical Retreats 5 | . 1 1 1 2 Traps | -11 -10 -9 -8 -7 ------- Run | Yrd Mat Mat Mat Fac Traps Triggered . | . . . . . Indirectly . | . . . . . Trap Hack Attempts . | . . . . . Triggered . | . . . . . Disarmed . | . . . . . Reprogrammed . | . . . . . Reused . | . . . . . Traps Extracted . | . . . . . Installed . | . . . . . Triggered . | . . . . . Machines | -11 -10 -9 -8 -7 ---------- Run | Yrd Mat Mat Mat Fac Machines Disabled . | . . . . . Max in Single Turn . | . . . . . Machines Repaired . | . . . . . Machines Dismantled . | . . . . . Machines Sabotaged . | . . . . . Overloaded Fab Kills . | . . . . . Hacking | -11 -10 -9 -8 -7 --------- Run | Yrd Mat Mat Mat Fac Machines Accessed 8 | . 2 2 3 1 Terminals 7 | . 1 2 3 1 Fabricators . | . . . . . Repair Stations . | . . . . . Recycling Units 1 | . 1 . . . Scanalyzers . | . . . . . Garrison Access . | . . . . . Total Hacks 29 | . 8 5 13 3 Successful 10 | . 3 2 3 2 Failed 19 | . 5 3 10 1 Catastrophic 4 | . . 1 3 . Database Lockouts . | . . . . . Manual 21 | . 4 3 13 1 Terminals 25 | . 4 5 13 3 Fabricators . | . . . . . Repair Stations . | . . . . . Recycling Units 4 | . 4 . . . Scanalyzers . | . . . . . Garrison Access . | . . . . . Terminal Hacks 2 | . . 1 . 1 Level Access Points 1 | . . 1 . . Zone Layout 1 | . . . . 1 Fabricator Hacks . | . . . . . Repair Station Hacks . | . . . . . Recycling Unit Hacks 2 | . 2 . . . Report Inventory 1 | . 1 . . . Retrieve Components 1 | . 1 . . . Scanalyzer . | . . . . . Garrison Access Hacks . | . . . . . Unauthorized Hacks 6 | . 1 1 3 1 Terminals 6 | . 1 1 3 1 Botnet 6 | . 1 1 3 1 Fabricators . | . . . . . Repair Stations . | . . . . . Recycling Units . | . . . . . Scanalyzers . | . . . . . Garrison Access . | . . . . . Data Cores Recovered . | . . . . . Used . | . . . . . Hacking Detections 8 | . 2 2 3 1 Full Trace Events 7 | . 1 2 3 1 Feedback Events . | . . . . . Feedback Blocked . | . . . . . Robot Schematics Acquired . | . . . . . Robots Built . | . . . . . Authchips . | . . . . . Time . | . . . . . Total Robot Build Rating . | . . . . . Part Schematics Acquired . | . . . . . Parts Built . | . . . . . Authchips . | . . . . . Time . | . . . . . Total Part Build Rating . | . . . . . Part Studies Acquired . | . . . . . Parts Repaired . | . . . . . Time . | . . . . . Parts Recycled . | . . . . . Recycled Matter . | . . . . . Retrieved Matter . | . . . . . Retrieved Components 1 | . 1 . . . Parts Scanalyzed . | . . . . . Part Schematics Acquired . | . . . . . Parts Damaged . | . . . . . Bothacking | -11 -10 -9 -8 -7 ------------ Run | Yrd Mat Mat Mat Fac Used RIF Installer . | . . . . . Robots Hacked . | . . . . . Non-combat . | . . . . . Combat . | . . . . . Robot Hacks Applied . | . . . . . Relay Couplers Released . | . . . . . Fabnet Peak Effective % . | . . . . . Robots Rewired . | . . . . . Allies Hacked . | . . . . . Hacks Repelled . | . . . . . Allies | -11 -10 -9 -8 -7 -------- Run | Yrd Mat Mat Mat Fac Total Allies . | . . . . . Largest Group . | . . . . . Highest-Rated Group . | . . . . . Highest-Rated Ally . | . . . . . Total Orders . | . . . . . Ally Attacks . | . . . . . Total Damage . | . . . . . Kills . | . . . . . Allies Corrupted . | . . . . . Allies Melted . | . . . . . Intel | -11 -10 -9 -8 -7 ------- Run | Yrd Mat Mat Mat Fac Active Infowar (turns) 238 | . 4 78 73 83 Optics 97 | . . 24 73 . Structural 145 | . 4 58 . 83 Robot Analysis Total . | . . . . . Derelict Logs Recovered . | . . . . . Drone Launches . | . . . . . Drone Recoveries . | . . . . . Exploration | -11 -10 -9 -8 -7 ------------- Run | Yrd Mat Mat Mat Fac Turns Passed 331 | 13 53 85 73 107 Spaces Moved 609 | 24 102 162 137 184 Core 493 | 24 23 125 137 184 Treads . | . . . . . Legs . | . . . . . Wheels . | . . . . . Hover . | . . . . . Flight 116 | . 79 37 . . Fastest Speed 40 | 50 40 40 50 50 Average Speed 48 | 50 42 47 50 50 Slowest Speed 50 | 50 50 50 50 50 Overloaded Moves . | . . . . . Propulsion Burnouts . | . . . . . Robots Hopped 3 | . 3 . . . Potential Cave-ins . | . . . . . Cave-ins Triggered . | . . . . . Exploration Rate (%) 22 | 3 29 43 28 9 Regions Visited 4 Branch Regions . Pre-discovered Areas . | . . . . . Known Exits Taken 1 | . . 1 . . Unknown Exits Taken 3 | 1 1 . 1 . Scrap Searched . | . . . . . Spaces Dug . | . . . . . Terrain Destroyed . | . . . . . Melee . | . . . . . Projectile . | . . . . . AOE . | . . . . . Terrain Rammed . | . . . . . Walls Destroyed . | . . . . . Machines Disabled . | . . . . . Actions | -11 -10 -9 -8 -7 --------- Run | Yrd Mat Mat Mat Fac Total 642 | 24 109 169 141 199 Wait . | . . . . . Move 601 | 23 96 161 137 184 Hop 3 | . 3 . . . Pick Up 6 | 1 2 1 . 2 Fast Attach 3 | . 1 2 . . Attach 4 | . 1 2 . 1 Detach 5 | . 2 2 . 1 Swap . | . . . . . Drop 1 | . . . . 1 Fire . | . . . . . Melee . | . . . . . Ram 19 | . 4 1 4 10 Kick . | . . . . . Crush . | . . . . . Escape Stasis . | . . . . . Rewire . | . . . . . Trap . | . . . . . Miscellaneous . | . . . . . Route ------- -11/Scrapyard -10/Materials -9/Materials (discovered 4 exits: *Mat x3 / [*Min]) -8/Materials -7/Factory History --------- Turn | Location | Event 6 | -11/Scrapyard | Discovered new exit (range 15) 14 | -11/Scrapyard | Entered Materials 65 | -10/Materials | Discovered new exit (range 6) 67 | -10/Materials | Entered another Materials area 67 | -9/Materials | Evolved 2 slots: Propulsion x1, Utility x1 109 | -9/Materials | Identified exit to Materials 120 | -9/Materials | Discovered new exit (range 13) 145 | -9/Materials | Core integrity fell below 50% 152 | -9/Materials | Entered another Materials area 152 | -8/Materials | Evolved 2 slots: Propulsion x1, Utility x1 212 | -8/Materials | Core integrity fell below 50% 222 | -8/Materials | Discovered new exit (range 6) 223 | -8/Materials | Core integrity fell below 20% 225 | -8/Materials | Entered Factory 225 | -7/Factory | Evolved 2 slots: Power x1, Utility x1 323 | -7/Factory | Build established: Mutant 332 | -7/Factory | Self-destructed Last Messages --------------- Awaiting botnet instructions. >>Layout(Zone) Retrieving Zone 9C layout... Downloaded map data. 00232_ ALERT: Suspicious activity at Terminal F013. Dispatching Investigation squad. 00284_ ALERT: All DSF locations entering lockdown mode. 00301_ Acquired Maul. 00302_ Dropped Ion Engine. 00302_ Acquired Ion Engine. 00308_ Slammed into R-06 Scavenger. 00315_ Structural Scanner broken. 00315_ Destabilizing: Short circuit. 00317_ Slammed into R-06 Scavenger. 00317_ Destabilizing: Core damaged (-35). 00319_ Slammed into R-06 Scavenger. 00322_ Slammed into K-01 Serf. 00324_ K-01 Serf destroyed. 00325_ Acquired 10 matter. 00325_ U-05 Engineer works on Pressure Siphon. Map ----- +----------------------------------------------------+ | | | | | | | | | | | | | | | | | | | | | | | | | ?????????????????????????????#????????######?????? | | ????????????????????????????? ???????? ?????? | | ????????????????????????????? ???????? ??????? | | ???????????????????????????? ??????"" ??????? | | ????????????????????????????" ????"""" ???????? | | ????????????????????????????" ???""""" = ???????? | | ???????????????????????????"" #??? ????????? | | ??????????????????????????""" #??? ????????? | | ???????????????????????????"" #???? ?????????? | | ???????????????????????????"" #????"" ?????????? | | ????????????????????????????" #?????" ??????????? | | ???????????????????????????? #????? ??? ###### | | ????????????????????###+#####+#######+############ | | ????????????????????# @! =%= | | ????????????????????# !! !########## | | ????????????????????# !! u #?######## | | ????????????????????# u< << rr#????????? | | ????????????????????# #????????? | | ????????????????????# <<% " #????????? | | ????????????????????# u "" #????????? | | ??????????????????? G * ???????? | | ?????????????????? "" ??????? | | ????????????????? " ?????? | | ???????????????? ????? | | ???????????????? ????? | | ???????????????? ######+#####################????? | | ?????????????????????????????????????????????????? | | ?????????????????????????????????????????????????? | | ?????????????????????????????????????????????????? | | ?????????????????????????????????????????????????? | | ?????????????????????????????????????????????????? | | ?????????????????????????????????????????????????? | | ?????????????????????????????????????????????????? | | ?????????????????????????????????????????????????? | | ?????????????????????????????????????????????????? | | ?????????????????????????????????????????????????? | | ?????????????????????????????????????????????????? | | ?????????????????????????????????????????????????? | +----------------------------------------------------+ Best States ------------- Heat Dissipation 34 Energy Generation 5 Energy Capacity 100 Matter Stores 300 Matter Capacity 300 Sight Range 18 Terrain Scan Density 10 Evasion (%) 70 Item Schematics ----------------- None Robot Schematics ------------------ None Fabricated ------------ Nothing Repaired ---------- Nothing Studied --------- None Alien Tech Used ----------------- None Achievements -------------- None Challenges ------------ None Game ------ Seed ReflectiveSurveybotStatue Manual? 0 Play Time 00:06:41 Cumulative 290.8 hours Start 2025.11.26 @ 21:27:49 End 2025.11.26 @ 21:33:14 Sessions 1 Manual Loads 0 Difficulty Rogue Special Mode None Game No. 346 Rogue 346 Adventurer 0 Explorer 0 Win Type - Total 18 Types 11/0/3/1/1/0/0/1/0/1 Lore% 77 Gallery% 75 Achievement% 57 Wizard Run 0 Options --------- Layout 1 ASCII 0 Keyboard 1 Movement Numpad Keybinds 0 Fullscreen 0 Font 32/SmallcapsGlow Map View 77x35 Zoom Use 0% Tactical HUD 1 Map Filters NONE Filters NONE Steam 1 RUN: 09697ee3-3a38-4e32-954b-0eb6a94ce134